bitfinex-derivatives/quotes_SOLF0:USTF0_20260105
["timestamp","ask_amount","ask_price","bid_price","bid_amount"]
[1767586036732,6.5955,136.52,136.46,0.46583264]
[1767586040242,6.5955,136.52,136.45,1.55754652]
[1767586040442,6.5955,136.52,136.45,2.02337916]
[1767586042044,6.5955,136.52,136.45,0.46583264]
[1767586042245,6.5955,136.52,136.45,2.02337916]
[1767586042443,6.5961,136.51,136.43,0.46583264]
[1767586042738,6.5961,136.51,136.43,2.02337916]
[1767586044247,6.5961,136.51,136.43,0.46583264]
[1767586044446,6.5961,136.51,136.43,2.02337916]
[1767586046748,6.5961,136.51,136.43,0.46583264]
[1767586046949,6.5961,136.51,136.44,1.55754652]
[1767586048450,6.5961,136.51,136.43,0.46583264]
[1767586048640,6.5961,136.51,136.43,2.02337916]
[1767586049149,6.5967,136.5,136.43,0.46583264]
[1767586049451,8.15424652,136.5,136.43,0.46583264]
[1767586050758,8.15424652,136.5,136.43,2.02337916]
[1767586051049,1.55754652,136.52,136.44,0.49666092]
[1767586052548,6.596,136.51,136.44,0.49666092]
[1767586052854,6.596,136.51,136.45,2.05420744]
[1767586053655,6.5951,136.53,136.45,2.05420744]
[1767586054448,6.5951,136.53,136.45,0.49666092]
[1767586054752,6.5951,136.53,136.46,2.05420744]
[1767586055554,6.5942,136.55,136.47,0.49666092]
[1767586055760,6.5942,136.55,136.48,1.55754652]
[1767586058656,6.5942,136.55,136.49,0.48006007]
[1767586060957,102.5276,136.61,136.52,2.03760659]
[1767586061163,88.11754652,136.6,136.52,2.03760659]
[1767586061850,1.55754652,136.59,136.52,0.48006007]
[1767586062050,1.55754652,136.59,136.51,1.55754652]
[1767586062456,1.55754652,136.59,136.51,2.03760659]
[1767586062650,6.5922,136.59,136.51,2.03760659]
[1767586062851,104.10344652,136.59,136.51,1.55754652]
[1767586063050,1.55754652,136.57,136.49,1.55754652]
[1767586063549,6.5936,136.56,136.49,1.55754652]
[1767586063750,6.5936,136.56,136.49,2.03760659]
[1767586063948,8.15014652,136.58,136.5,0.48006007]
[1767586069358,6.5926,136.58,136.5,0.48006007]
[1767586069564,8.15014652,136.58,136.5,2.03760659]
[1767586069759,6.5932,136.57,136.5,2.03760659]
[1767586069955,6.5932,136.57,136.48,2.03760659]
[1767586070159,6.5932,136.57,136.49,0.48006007]
[1767586074664,104.99594105,136.57,136.47,0.48006007]
[1767586074865,2.43524105,136.55,136.46,0.48006007]
[1767586075567,6.5946,136.54,136.46,0.48006007]
[1767586079574,6.5946,136.54,136.47,0.48006007]
[1767586081177,6.595,136.53,136.45,0.45894252]
[1767586081676,9.03024105,136.53,136.45,0.45894252]
[1767586081977,6.5957,136.52,136.45,0.45894252]
[1767586083370,6.5957,136.52,136.43,86.99894252]
[1767586084375,6.5957,136.52,136.44,0.45894252]
[1767586087874,105.01814105,136.54,136.44,0.45894252]
[1767586087875,2.43524105,136.54,136.44,0.45894252]
[1767586088484,2.43524105,136.54,136.44,7.05804252]
[1767586088683,2.43524105,136.54,136.45,0.45894252]
[1767586089585,6.5955,136.52,136.45,0.45894252]
[1767586090387,6.5955,136.52,136.43,86.99894252]
[1767586090581,6.596,136.51,136.43,86.99894252]
[1767586091580,102.612,136.5,136.39,0.45894252]
[1767586091890,102.6259,136.48,136.38,31.00445156]
[1767586092085,6.5981,136.47,136.38,31.46339408]
[1767586093293,6.5986,136.46,136.38,0.45894252]
[1767586094088,6.5991,136.45,136.36,0.45894252]
[1767586094288,189.2186,136.44,136.34,0.45894252]
[1767586095489,191.65384105,136.44,136.34,0.45894252]
[1767586095790,6.5997,136.43,136.34,0.45894252]
[1767586096179,6.6005,136.42,136.34,0.45894252]
[1767586097084,2.43524105,136.48,136.36,0.45894252]
[1767586097289,86.58,136.47,136.38,0.45894252]
[1767586097692,93.1775,136.48,136.4,0.45894252]
[1767586098492,86.58,136.48,136.4,0.45894252]
[1767586099283,29.70872676,136.5,136.4,0.45894252]
[1767586099485,86.58,136.51,136.41,0.45894252]
[1767586100491,86.58,136.51,136.42,2.89418357]
[1767586100794,86.58,136.51,136.43,0.45894252]
[1767586102688,6.5956,136.52,136.44,2.89418357]
[1767586103780,86.58,136.53,136.45,0.45894252]
[1767586104995,6.5936,136.56,136.48,0.45894252]
[1767586105202,191.58364105,136.56,136.45,0.45894252]
[1767586105698,105.01814105,136.54,136.43,0.45894252]
[1767586105991,102.5829,136.54,136.43,0.45894252]
[1767586107594,6.5956,136.52,136.43,0.45894252]
[1767586108095,93.1756,136.52,136.43,0.45894252]
[1767586108793,6.5961,136.51,136.43,0.45894252]
[1767586110497,86.58,136.52,136.43,0.45894252]
[1767586111195,86.58,136.52,136.44,2.43524105]
[1767586111398,86.58,136.52,136.44,2.88330138]
[1767586112300,93.1756,136.52,136.42,7.04796033]
[1767586112601,86.58,136.52,136.42,7.04796033]
[1767586113204,6.5965,136.5,136.42,0.44806033]
[1767586113504,105.04144105,136.51,136.42,0.44806033]
[1767586113794,105.04144105,136.51,136.4,87.02806033]
[1767586113795,6.5976,136.48,136.4,87.02806033]
[1767586115994,6.598,136.47,136.4,87.02806033]
[1767586116394,6.598,136.47,136.4,0.44806033]
[1767586119205,6.597,136.49,136.4,0.44806033]
[1767586120708,6.597,136.49,136.4,7.04886033]
[1767586123208,2.43524105,136.49,136.4,0.44806033]
[1767586123700,6.5976,136.48,136.4,0.44806033]
[1767586128906,6.5976,136.48,136.4,7.04896033]
[1767586129113,6.5976,136.48,136.41,0.48008988]
[1767586132510,6.5976,136.48,136.41,2.04027932]
[1767586133814,6.5976,136.48,136.41,0.48008988]
[1767586134111,6.5976,136.48,136.41,2.04027932]
[1767586134298,6.5967,136.5,136.42,0.48008988]
[1767586134502,8.15688944,136.5,136.42,0.48008988]
[1767586134705,6.5967,136.5,136.42,0.48008988]
[1767586135506,6.5967,136.5,136.43,1.56018944]
[1767586136212,6.5967,136.5,136.43,2.04027932]
[1767586139310,6.5967,136.5,136.44,0.48008988]
[1767586141115,6.5967,136.5,136.43,1.56018944]
[1767586141312,6.597,136.49,136.41,1.56018944]
[1767586144217,8.15778944,136.48,136.41,1.56018944]
[1767586144420,8.15778944,136.48,136.4,2.01831119]
[1767586146719,1.56018944,136.53,136.45,0.45812175]
[1767586147721,6.5956,136.52,136.45,0.45812175]
[1767586156521,8.15478944,136.54,136.45,0.45812175]
[1767586156925,1.56018944,136.54,136.45,0.45812175]
[1767586157130,1.56018944,136.54,136.46,1.56018944]
[1767586158632,6.595,136.53,136.46,1.56018944]
[1767586162037,189.1461,136.56,136.44,8.15928944]
[1767586162038,8.15578944,136.52,136.44,8.15928944]
[1767586163138,6.596,136.51,136.43,0.45812175]
[1767586163337,1.56018944,136.5,136.43,0.45812175]
[1767586163531,1.56018944,136.52,136.45,0.45812175]
[1767586164333,102.577,136.55,136.45,0.45812175]
[1767586164532,1.56018944,136.54,136.45,0.45812175]
[1767586164837,1.56018944,136.54,136.46,2.01831119]
[1767586165538,8.15488944,136.54,136.46,2.01831119]
[1767586168837,6.5947,136.54,136.46,2.01831119]
[1767586169038,8.15488944,136.54,136.47,0.45812175]
[1767586169737,1.56018944,136.54,136.47,0.45812175]
[1767586170039,94.73378944,136.56,136.48,0.45812175]
[1767586170544,1.56018944,136.55,136.48,0.45812175]
[1767586173341,93.1736,136.56,136.49,0.45686409]
[1767586175238,6.5921,136.59,136.52,2.01705353]
[1767586175640,1.56018944,136.6,136.53,0.45686409]
[1767586175840,6.5912,136.61,136.53,0.45686409]
[1767586176046,88.12018944,136.62,136.53,0.45686409]
[1767586176243,88.12018944,136.62,136.54,1.99659935]
[1767586176431,1.56018944,136.62,136.54,1.99659935]
[1767586177138,1.56018944,136.62,136.55,0.43640991]
[1767586177445,8.15038944,136.63,136.55,0.43640991]
[1767586177837,1.56018944,136.64,136.57,0.43640991]
[1767586178844,94.70948944,136.65,136.57,0.43640991]
[1767586179248,88.12018944,136.65,136.57,0.43640991]
[1767586179544,1.56018944,136.65,136.58,1.99659935]
[1767586180140,1.46,136.64,136.56,5.15261442]
[1767586180346,1.46,136.64,136.43,0.43640991]
[1767586180347,102.5814,136.54,136.43,0.43640991]
[1767586180645,1.56018944,136.52,136.43,1.99659935]
[1767586181045,102.5814,136.54,136.43,1.99659935]
[1767586181239,1.56018944,136.52,136.43,1.99659935]
[1767586181849,0.05363985,136.5,136.43,1.99659935]
[1767586182445,1.61382929,136.5,136.43,0.43640991]
[1767586183347,0.05363985,136.5,136.43,0.43640991]
[1767586184651,1.61382929,136.5,136.43,0.43640991]
[1767586184842,1.61382929,136.5,136.41,86.97640991]
[1767586185253,1.56018944,136.5,136.41,86.97640991]
[1767586185746,0.05027563,136.47,136.41,86.97640991]
[1767586189053,1.61046507,136.47,136.41,86.97640991]
[1767586192660,0.05027563,136.47,136.41,86.97640991]
[1767586200963,105.12655753,136.47,136.39,0.45748771]
[1767586201169,102.6427,136.46,136.39,0.45748771]
[1767586201769,0.04935678,136.44,136.39,0.45748771]
[1767586204963,6.64885678,136.44,136.37,0.45748771]
[1767586205768,6.6001,136.43,136.37,0.45748771]
[1767586210270,6.6004,136.42,136.37,0.45748771]
[1767586211078,0.05027213,136.41,136.37,0.45748771]
[1767586211782,0.05027213,136.41,136.34,0.45748771]
[1767586212182,6.6009,136.41,136.34,0.45748771]
[1767586212477,2.4383819,136.41,136.34,0.45748771]
[1767586212778,0.04823093,136.39,136.34,0.45748771]
[1767586219081,0.04823093,136.39,136.32,86.6]
[1767586219082,6.65003093,136.39,136.32,87.05748771]
[1767586220080,6.65003093,136.39,136.31,5.101e-05]
[1767586220081,6.6047,136.33,136.31,5.101e-05]
[1767586220274,102.7426,136.33,136.24,0.45748771]
[1767586220786,6.6058,136.31,136.24,0.45748771]
[1767586220983,0.04970813,136.3,136.24,0.45748771]
[1767586221485,6.65590813,136.3,136.24,0.45748771]
[1767586221887,105.25209003,136.3,136.19,89.0583819]
[1767586222184,6.6068,136.29,136.19,89.0583819]
[1767586222689,0.05217007,136.25,136.19,89.0583819]
[1767586223183,0.05217007,136.25,136.19,86.62]
[1767586223881,6.6061,136.3,136.21,0.04644066]
[1767586224084,2.4383819,136.32,136.22,0.45748771]
[1767586224391,86.64,136.31,136.22,0.45748771]
[1767586224793,2.4383819,136.34,136.23,0.45748771]
[1767586225091,86.64,136.34,136.24,0.45748771]
[1767586226293,109.3216,136.36,136.26,0.45748771]
[1767586226494,195.9816,136.36,136.26,0.45748771]
[1767586226993,93.2632,136.36,136.26,0.45748771]
[1767586228284,6.6032,136.36,136.26,0.45748771]
[1767586228584,93.2632,136.36,136.26,0.45748771]
[1767586229090,93.2632,136.36,136.28,0.45748771]
[1767586230098,6.6032,136.36,136.28,0.45748771]
[1767586230395,93.2632,136.36,136.28,0.45748771]
[1767586231682,6.6032,136.36,136.28,0.45748771]
[1767586231890,93.2632,136.36,136.28,0.45748771]
[1767586238499,102.6837,136.41,136.31,2.91033945]
[1767586238702,86.68,136.4,136.31,2.91033945]
[1767586239099,93.2814,136.4,136.32,0.47195755]
[1767586239704,86.68,136.4,136.34,0.47195755]
[1767586243305,86.66,136.43,136.34,0.47195755]
[1767586244409,86.66,136.43,136.35,0.47195755]
[1767586246413,86.66,136.43,136.35,7.07525755]
[1767586246710,86.66,136.43,136.36,0.47195755]
[1767586248805,102.6116,136.5,136.38,0.47195755]
[1767586248998,2.4383819,136.49,136.39,0.47195755]
[1767586249402,2.4383819,136.47,136.39,0.47195755]
[1767586249605,2.4383819,136.45,136.35,0.47195755]
[1767586249905,2.4383819,136.43,136.35,0.47195755]
[1767586251909,2.4383819,136.43,136.34,6.6039]
[1767586252211,2.4383819,136.41,136.32,7.07675755]
[1767586254519,1.56260531,136.39,136.32,7.07675755]
[1767586255012,1.56260531,136.39,136.3,87.11195755]
[1767586255218,102.6882,136.4,136.3,87.11195755]
[1767586255419,1.56260531,136.37,136.3,87.11195755]
[1767586256212,1.56260531,136.35,136.28,0.47195755]
[1767586261622,6.603,136.37,136.28,0.47195755]
[1767586261822,1.56260531,136.35,136.28,0.47195755]
[1767586262621,1.56260531,136.31,136.25,0.48079763]
[1767586263120,1.56260531,136.31,136.23,2.04340294]
[1767586264820,1.56260531,136.31,136.23,0.48079763]
[1767586265524,6.6053,136.32,136.23,0.48079763]
[1767586265718,1.56260531,136.31,136.23,0.48079763]
[1767586266411,8.16840531,136.31,136.23,0.48079763]
[1767586266723,1.56260531,136.29,136.22,86.66]
[1767586269330,1.56260531,136.29,136.21,0.48079763]
[1767586269523,1.56260531,136.27,136.21,0.48079763]
[1767586270923,1.56260531,136.29,136.21,0.48079763]
[1767586272031,1.56260531,136.29,136.21,7.09089763]
[1767586272218,1.56260531,136.29,136.21,0.48079763]
[1767586272620,1.56260531,136.27,136.21,0.48079763]
[1767586273331,1.56260531,136.27,136.19,7.09189763]
[1767586273533,1.56260531,136.29,136.21,0.48079763]
[1767586274125,1.56260531,136.3,136.22,1.56260531]
[1767586274536,8.16890531,136.3,136.22,1.56260531]
[1767586275527,86.66,136.31,136.21,0.48079763]
[1767586275528,8.16940531,136.29,136.21,0.48079763]
[1767586276231,8.16940531,136.29,136.21,2.04340294]
[1767586281434,8.16940531,136.29,136.21,7.09099763]
[1767586281638,8.16940531,136.29,136.21,0.48079763]
[1767586283036,1.56260531,136.27,136.21,0.48079763]
[1767586283243,1.56260531,136.28,136.21,0.48079763]
[1767586284843,6.6068,136.29,136.21,0.48079763]
[1767586285142,1.56260531,136.28,136.21,0.48079763]
[1767586286242,8.16970531,136.28,136.21,0.48079763]
[1767586286443,1.56260531,136.28,136.19,8.65440294]
[1767586287641,6.6076,136.27,136.19,8.65440294]
[1767586288237,6.6076,136.27,136.19,7.09179763]
[1767586288436,6.6076,136.27,136.19,8.65440294]
[1767586291148,6.6076,136.27,136.2,0.48048202]
[1767586291338,6.6067,136.29,136.2,7.09118202]
[1767586291637,8.16930531,136.29,136.21,2.04308733]
[1767586293839,6.6067,136.29,136.21,2.04308733]
[1767586294038,8.16930531,136.29,136.21,2.04308733]
[1767586295644,6.6071,136.28,136.21,2.04308733]
[1767586297844,6.6064,136.3,136.22,0.48091434]
[1767586298045,86.66,136.31,136.25,1.56260531]
[1767586299155,93.2656,136.31,136.25,1.56260531]
[1767586302058,93.2656,136.31,136.24,0.48091434]
[1767586302251,93.2656,136.31,136.24,2.04351965]
[1767586302550,93.2656,136.31,136.24,0.48091434]
[1767586302754,94.82820531,136.31,136.24,0.48091434]
[1767586304750,6.6072,136.28,136.22,0.48091434]
[1767586304947,6.6072,136.28,136.2,8.65411965]
[1767586305352,189.4195,136.31,136.2,8.65411965]
[1767586305353,8.17020531,136.27,136.2,0.48091434]
[1767586305751,1.56260531,136.27,136.2,0.48091434]
[1767586305956,1.56260531,136.25,136.2,0.48091434]
[1767586306658,1.56260531,136.25,136.18,0.48091434]
[1767586307655,8.17120531,136.25,136.18,0.48091434]
[1767586308659,6.6086,136.25,136.18,0.48091434]
[1767586308849,8.17120531,136.25,136.18,0.48091434]
[1767586311666,6.6078,136.27,136.2,0.48091434]
[1767586312758,8.17040531,136.27,136.2,0.48091434]
[1767586312960,1.56260531,136.27,136.2,0.48091434]
[1767586313160,6.6068,136.29,136.22,0.48091434]
[1767586313776,8.16980531,136.28,136.21,1.56260531]
[1767586316570,6.6072,136.28,136.2,0.48091434]
[1767586317172,6.6076,136.27,136.2,0.48091434]
[1767586318066,6.6081,136.26,136.18,0.48091434]
[1767586319672,89.1655371,136.26,136.16,0.48091434]
[1767586320669,6.6091,136.24,136.16,7.09361434]
[1767586320870,86.72,136.26,136.17,0.53207379]
[1767586322577,93.3283,136.26,136.18,0.53207379]
[1767586323278,86.72,136.26,136.19,0.53207379]
[1767586323575,6.6072,136.28,136.19,0.53207379]
[1767586324073,6.6072,136.28,136.2,0.53207379]
[1767586324272,0.05336516,136.25,136.22,0.04915711]
[1767586327983,89.1655371,136.32,136.22,0.5812309]
[1767586328384,89.1655371,136.32,136.22,0.53207379]
[1767586329182,89.1655371,136.32,136.26,0.05227735]
[1767586329682,6.6063,136.3,136.26,0.05227735]
[1767586330382,89.1655371,136.32,136.26,0.05227735]
[1767586330383,95.7708371,136.32,136.26,0.05227735]
[1767586330981,102.7116,136.37,136.26,0.58435114]
[1767586331285,2.4455371,136.33,136.26,0.05227735]
[1767586331481,2.4455371,136.33,136.24,0.53207379]
[1767586331884,2.4455371,136.33,136.28,0.0541522]
[1767586332591,6.6052,136.32,136.24,0.53207379]
[1767586338290,6.6057,136.31,136.24,0.53207379]
[1767586339086,6.6057,136.31,136.22,6.6096]
[1767586339282,6.6057,136.31,136.22,7.14167379]
[1767586339482,6.6057,136.31,136.23,0.53207379]
[1767586344288,6.6062,136.3,136.23,0.53207379]
[1767586344995,6.6066,136.29,136.23,0.53207379]
[1767586345989,6.6047,136.33,136.25,0.53207379]
[1767586346190,6.6047,136.33,136.26,0.53207379]
[1767586346590,6.6038,136.35,136.26,0.53207379]
[1767586347595,6.6038,136.35,136.27,0.53207379]
[1767586352693,6.6038,136.35,136.27,2.97761089]
[1767586352897,6.6029,136.37,136.28,0.53819024]
[1767586354894,6.6033,136.36,136.28,0.53819024]
[1767586356701,102.7172,136.36,136.26,0.48869431]
[1767586356900,105.1782371,136.34,136.24,0.48869431]
[1767586357101,105.1627371,136.36,136.26,0.48869431]
[1767586358090,6.6044,136.34,136.26,0.48869431]
[1767586358801,6.6044,136.34,136.27,0.48869431]
[1767586359804,6.6044,136.34,136.27,2.93423141]
[1767586364907,6.6044,136.34,136.27,0.48869431]
[1767586376520,6.6044,136.34,136.27,2.05206723]
[1767586381518,6.6044,136.34,136.27,0.48869431]
[1767586381718,6.6044,136.34,136.27,2.05206723]
[1767586383527,6.6044,136.34,136.27,0.48869431]
[1767586383729,6.6044,136.34,136.27,2.05206723]
[1767586393537,8.16807292,136.33,136.25,2.08499545]
[1767586393738,8.16807292,136.33,136.25,88.76499545]
[1767586394830,8.16807292,136.33,136.25,87.20162253]
[1767586395027,1.56337292,136.31,136.23,0.52162253]
[1767586395737,8.17007292,136.29,136.21,0.52162253]
[1767586395930,8.17007292,136.29,136.21,2.08499545]
[1767586399640,6.6072,136.28,136.21,2.08499545]
[1767586400541,6.6072,136.28,136.21,0.52162253]
[1767586402035,1.56337292,136.29,136.21,0.52162253]
[1767586403743,8.17007292,136.29,136.21,2.08499545]
[1767586404343,8.17007292,136.29,136.21,0.52162253]
[1767586405842,6.6067,136.29,136.21,0.52162253]
[1767586406042,1.56337292,136.28,136.21,0.52162253]
[1767586406644,6.6071,136.28,136.19,86.7]
[1767586406840,1.56337292,136.27,136.19,0.52162253]
[1767586408150,102.7721,136.29,136.19,0.52162253]
[1767586408347,1.56337292,136.27,136.19,0.52162253]
[1767586408549,8.17097292,136.27,136.19,0.52162253]
[1767586409349,8.17097292,136.27,136.19,2.08499545]
[1767586410346,6.6076,136.27,136.19,0.52162253]
[1767586410550,6.6076,136.27,136.2,1.56337292]
[1767586410755,6.6076,136.27,136.19,0.52162253]
[1767586410943,6.6076,136.27,136.2,2.09717762]
[1767586412058,6.6081,136.26,136.18,95.40877762]
[1767586412445,6.6087,136.25,136.18,87.2338047]
[1767586412645,6.6087,136.25,136.18,88.79717762]
[1767586413146,6.6087,136.25,136.18,0.5338047]
[1767586413362,6.6106,136.21,136.12,0.5338047]
[1767586413558,1.56337292,136.21,136.12,0.5338047]
[1767586413750,189.529,136.24,136.14,0.5338047]
[1767586413950,189.529,136.24,136.14,2.09717762]
[1767586414246,102.7938,136.26,136.16,1.56337292]
[1767586414440,86.72,136.25,136.17,1.56337292]
[1767586414648,86.72,136.25,136.17,2.09717762]
[1767586414950,6.6086,136.25,136.17,2.09717762]
[1767586415256,6.6086,136.25,136.19,1.56337292]
[1767586415958,6.6086,136.25,136.17,0.5338047]
[1767586416455,6.6086,136.25,136.19,1.56337292]
[1767586417159,6.6086,136.25,136.17,0.5338047]
[1767586417365,6.6076,136.27,136.19,0.53196044]
[1767586417556,6.6076,136.27,136.2,1.56337292]
[1767586418261,6.6076,136.27,136.18,1.56337292]
[1767586418656,8.17097292,136.27,136.18,2.09533336]
[1767586419862,6.6082,136.26,136.19,0.53196044]
[1767586420252,6.6082,136.26,136.2,1.56337292]
[1767586421152,6.6082,136.26,136.19,0.53196044]
[1767586421357,6.6082,136.26,136.19,2.09533336]
[1767586422361,6.6087,136.25,136.19,1.56337292]
[1767586422756,6.6087,136.25,136.17,2.09533336]
[1767586425662,8.17207292,136.25,136.17,2.09533336]
[1767586428062,6.6092,136.24,136.17,0.53196044]
[1767586428664,1.56337292,136.21,136.15,0.53196044]
[1767586429257,6.61,136.22,136.15,0.53196044]
[1767586429458,1.56337292,136.21,136.15,0.53196044]
[1767586430066,1.56337292,136.21,136.13,0.53196044]
[1767586430067,8.17417292,136.21,136.13,0.53196044]
[1767586430866,6.6108,136.21,136.13,0.53196044]
[1767586431066,8.17417292,136.21,136.13,0.53196044]
[1767586432054,8.17437292,136.2,136.13,0.53196044]
[1767586433859,6.611,136.2,136.13,0.53196044]
[1767586435056,6.611,136.2,136.13,2.09533336]
[1767586436667,6.611,136.2,136.13,0.53196044]
[1767586445983,6.6097,136.23,136.15,0.53713837]
[1767586447680,6.6097,136.23,136.15,7.15033837]
[1767586449084,6.6097,136.23,136.16,0.53713837]
[1767586451580,6.6086,136.25,136.16,7.14963837]
[1767586451888,6.6086,136.25,136.18,0.53713837]
[1767586455590,6.6086,136.25,136.17,6.6121]
[1767586455790,2.44807402,136.25,136.15,6.6131]
[1767586456387,2.44807402,136.23,136.14,0.53713837]
[1767586456585,102.8213,136.22,136.12,87.29713837]
[1767586457284,2.44807402,136.21,136.12,87.29713837]
[1767586457793,6.611,136.2,136.12,87.29713837]
[1767586458393,6.6102,136.22,136.15,0.53713837]
[1767586462098,9.05857402,136.21,136.13,7.15123837]
[1767586462689,6.6113,136.2,136.13,0.53713837]
[1767586465500,6.6115,136.19,136.11,0.53713837]
[1767586466909,2.44807402,136.13,136.04,0.53713837]
[1767586467701,89.20807402,136.13,136.04,0.53713837]
[1767586468401,6.615,136.12,136.04,0.53713837]
[1767586471005,9.06367402,136.11,136.02,0.49262332]
[1767586471187,9.06367402,136.11,135.99,0.49262332]
[1767586471188,105.37087402,136.09,135.99,0.49262332]
[1767586471392,86.78,136.08,135.99,0.49262332]
[1767586471593,9.06387402,136.1,136.0,0.49262332]
[1767586471800,86.78,136.09,136.0,0.49262332]
[1767586472600,95.84457402,136.09,136.0,0.49262332]
[1767586473293,89.22807402,136.09,135.98,0.49262332]
[1767586473499,2.44807402,136.09,135.98,0.49262332]
[1767586473896,86.8,136.08,135.98,0.49262332]
[1767586474497,9.06537402,136.07,135.98,0.49262332]
[1767586474704,9.06537402,136.07,135.97,6.622]
[1767586474902,9.06537402,136.07,135.97,7.11462332]
[1767586475406,6.618,136.06,135.97,0.49262332]
[1767586476496,93.418,136.06,135.97,0.49262332]
[1767586477104,95.86607402,136.06,135.97,0.49262332]
[1767586479099,93.418,136.06,135.97,0.49262332]
[1767586481010,6.6188,136.04,135.96,0.52665308]
[1767586481212,105.38587402,136.07,135.96,0.52665308]
[1767586481410,86.82,136.05,135.96,0.52665308]
[1767586482604,2.44807402,136.09,135.98,0.52665308]
[1767586482798,89.28807402,136.08,135.98,0.52665308]
[1767586483304,6.6179,136.06,135.98,0.52665308]
[1767586484716,189.7596,136.09,135.99,0.52665308]
[1767586485008,86.84,136.09,135.99,0.52665308]
[1767586485314,6.6171,136.08,136.0,0.52665308]
[1767586488512,86.84,136.09,136.0,0.52665308]
[1767586490118,189.7621,136.09,135.99,2.44807402]
[1767586490611,6.6164,136.09,136.0,0.52665308]
[1767586490808,86.84,136.09,135.99,2.44807402]
[1767586491217,86.84,136.09,135.98,2.9747271]
[1767586491607,6.6169,136.08,135.98,9.5960271]
[1767586492215,6.6169,136.08,135.99,0.52665308]
[1767586493820,6.6173,136.07,135.99,0.52665308]
[1767586495915,6.6173,136.07,135.99,7.14755308]
[1767586497530,86.84,136.09,135.99,7.14755308]
[1767586497531,93.4565,136.09,136.0,0.52665308]
[1767586498522,95.02603941,136.09,136.0,2.09619249]
[1767586498722,8.18603941,136.09,136.0,2.09619249]
[1767586498923,6.6169,136.08,136.0,0.52665308]
[1767586499630,1.56953941,136.07,135.98,0.52665308]
[1767586499827,6.6178,136.06,135.98,0.52665308]
[1767586500627,8.18803941,136.05,135.96,0.53884285]
[1767586501020,6.6185,136.05,135.97,0.53884285]
[1767586501225,1.56953941,136.07,136.0,0.53884285]
[1767586501616,1.56953941,136.06,135.98,7.16004285]
[1767586502022,1.56953941,136.05,135.97,0.53884285]
[1767586503335,1.56953941,136.01,135.93,0.53884285]
[1767586503631,102.9603,136.04,135.93,0.53884285]
[1767586503926,1.56953941,136.02,135.94,0.53884285]
[1767586504133,88.42953941,136.04,135.96,0.53884285]
[1767586504732,88.42953941,136.06,135.97,2.10838226]
[1767586505127,1.56953941,136.06,135.98,0.53884285]
[1767586505527,93.4774,136.07,135.98,0.53884285]
[1767586505727,93.4774,136.07,135.99,2.10838226]
[1767586506124,6.6164,136.09,136.01,2.10838226]
[1767586506929,6.6164,136.09,136.01,0.53884285]
[1767586507146,6.6164,136.09,136.01,2.10838226]
[1767586508236,1.56953941,136.1,136.02,0.53884285]
[1767586508534,93.4754,136.11,136.02,0.53884285]
[1767586508831,1.56953941,136.1,136.02,0.53884285]
[1767586509224,8.18553941,136.1,136.01,1.56953941]
[1767586509421,6.616,136.1,136.01,1.56953941]
[1767586509925,1.56953941,136.09,136.01,2.10838226]
[1767586510530,8.18553941,136.1,136.02,0.53884285]
[1767586510734,8.18453941,136.12,136.03,0.53884285]
[1767586510931,6.615,136.12,136.03,0.53884285]
[1767586511132,8.18453941,136.12,136.03,0.53884285]
[1767586511528,6.615,136.12,136.04,2.10838226]
[1767586511834,6.615,136.12,136.05,0.53884285]
[1767586512024,1.56953941,136.11,136.04,1.56953941]
[1767586513031,1.56953941,136.11,136.04,2.10838226]
[1767586513231,6.615,136.12,136.04,2.10838226]
[1767586514141,88.42953941,136.13,136.05,0.53884285]
[1767586514439,1.56953941,136.13,136.05,0.53884285]
[1767586514933,1.56953941,136.13,136.06,0.53884285]
[1767586515334,8.18403941,136.13,136.06,0.53884285]
[1767586516237,8.18403941,136.13,136.04,2.10838226]
[1767586517227,1.56953941,136.12,136.04,2.10838226]
[1767586517832,1.56953941,136.12,136.05,0.53884285]
[1767586518641,6.6145,136.13,136.05,0.53884285]
[1767586518833,1.56953941,136.12,136.05,0.53884285]
[1767586519032,8.18453941,136.12,136.05,0.53884285]
[1767586519438,8.18453941,136.12,136.03,1.56953941]
[1767586519837,8.18453941,136.12,136.03,2.10838226]
[1767586520840,6.615,136.12,136.03,2.10838226]
[1767586521042,1.56953941,136.11,136.03,2.10838226]
[1767586522638,8.18493941,136.11,136.03,2.10838226]
[1767586523144,6.6154,136.11,136.03,2.10838226]
[1767586523339,1.56953941,136.11,136.04,0.53884285]
[1767586523732,1.56953941,136.12,136.04,0.53884285]
[1767586525245,8.18443941,136.12,136.04,0.53884285]
[1767586525446,6.6149,136.12,136.04,0.53884285]